Workbook

Sheet Start
F2: Modul 02 : Unternehmensgründung
L4: Zu dieser Datei:
L5: Diese Datei enthält das komplette Fallbeispiel "E-Car-Services Max Muster e. K." aus
L6: dem Lernmodul "02_Unternehmensgründung" für eine eigenständige "step-by-step"-Nach-
L7: bearbeitung unter MS Excel.
L8: Es wird empfohlen, zuvor die anderen Excel-Dateien zum Thema "Unternehmensgründung"
L9: (insbesondere zu den Themen "Kreislauf", "Kapitalbedarf", "Finanzierung", "Kalkulation"
L10: und "Bilanz-GuV-CF") durchzuarbeiten.
L12: Die Bearbeitung der Aufgabe kann nach jeder Phase abgebrochen und von Phase 1 an
L13: wiederholt werden.
L15: Eine Musterlösung zum Fallbeispiel kann erst nach Bearbeitung aller sechs Phasen des
L16: Kreislaufmodells eingesehen werden.
L18: Also dann: Viel Erfolg!

Sheet Vorhaben
C3: Fallbeispiel Fa. " E-Car Service Max Muster e. K."
C5: 1. Gründungsperson, Gründungsvorhaben
C6: Der Ingenieur für Kraftfahrzeugtechnik, Max Muster, bislang als technischer Leiter in einem bekann-
C7: ten Pkw-Unternehmen in A-Stadt tätig, hat eine Erbschaft gemacht, die ihm - außer einem größeren
C8: Geldbetrag - auch das Eigentum über ein zur Zeit noch nicht bebautes Grundstück in einer günstigen
C9: Lage im sog. "Speckgürtel" der Großstadt B-Stadt einbringt.
C10: Seine Ehefrau, Annett Muster, ist nach erfolgreicher Fortbildung zur Industriefachkauffrau im
C11: Bereich Rechnungswesen und Controlling in einem Zulieferbetrieb des Pkw-Unternehmens tätig.
C13: Nach vielen Vorklärungen und Recherchen beschließen die Ehepartner, die "Gunst der Stunde" zu
C14: nutzen, um die bereits seit längerem gehegte Absicht des Aufbaus einer selbstständigen Tätigkeit
C15: mit einem eigenen Unternehmen Wirklichkeit werden zu lassen.
C17: Die Eheleute Annett und Max Muster wollen auf besagten Grundstück einen Betrieb für die Wartung
C18: und Reparatur von Elektroautos errichten.
C19: Die Recherche zu einem solchen Vorhaben hat ergeben, dass es für einen solchen Betrieb gute
C20: Auftragschancen gibt, denn einerseits wird der Bau und der Einsatz von Elektroautos staatlicherseits
C21: gefördert, andererseits werden in vielen Einrichtungen der Großstadt (wie Ausstellungsmesse,
C22: Touristik-Service u. a.) bereits Elektroautos eingesetzt.
C23: Im Großraum von B-Stadt gibt es zudem keine derartige Spezial-Werkstatt.
C25: Die Neugründung soll zunächst in Form des Einzelkaufmanns vorgenommen werden. Eine spätere
C26: Wandlung in eine GmbH soll dann erfolgen, wenn ein stabiles Umsatzgeschäft erreicht wird.
C27: Die Gewerbeanmeldung sei bereits erledigt, die Eintragung in das Handelsregister ist eingeleitet.
C28: Die Firma - als Name des Unternehmens - soll auf "E-Car-Service Max Muster e. K" lauten.
C29: Vom zuständigen Finanzamt hat der Jung-Unternehmer bereits eine Steuernummer erhalten.
C30: Die Anmeldung bei der Berufsgenossenschaft ist erfolgt. Bei der Kreissparkasse wurde ein
C31: Geschäftskonto eröffnet.
C46: Das Anliegen der Darstellungen in dieser Datei besteht darin, den ersten geschlossenen Kreislauf
C47: des Umsatzprozesses - ausgehend von den in Kapitel 4 der Lernmoduls "02-Unternehmensfgründung"
C48: angegebenen Zahlen zum Kapitalbedarf und zur Finanzierung dieses Bedarfs - "step-by-step" nachzubilden
C49: und dabei die Wirkungen der Geschäftsvorfälle in der jeweiligen Phase des Kreislaufs in der Bilanz, in
C50: der Gewinn- und Verlustrechnung und in der Kapitalflussrechnung buchungsgerecht abzubilden.
C51: Hierbei wird vorausgesetzt, dass die Aufgaben in den Excel-Dateien "02_01_Gruendung_Start" bis
C52: "02_04_Gruendung_Bilanz_GuV-CF" bereits durchgearbeitet wurden. Dies würde die Bearbeitung
C53: der Aufgaben in dieser Datei erleichtern.

Sheet Kapitalbedarf
C3: Fallbeispiel Fa. " E-Car Service Max Muster e. K."
C5: 2. Daten zum Kapitalbedarf und zur Finanzierung
C6: 2.1 Kapitalbedarf "Anlagevermögen"
C8: All jene Vermögensgegenstände, die - je nach Unternehmenszweck - dazu geeignet sind, die beabsichtigte Erstellung
C9: und marktliche Verwertung von Produkten und Leistungen zu ermöglichen und die zugleich auch dauerhaft bzw. über
C10: eine längere Zeitspanne dem Geschäftsbetrieb des Unternehmens dienen, werden dem Anlagevermögen des Unter-
C11: nehmens zugerechnet.
C12: Ist die Geschäftsidee des Gründers klar umrissen und die Möglichkeit ihrer Umsetzung ausreichend geprüft, gilt es, den
C13: erforderlichen Kapitalbedarf für das Erstellen und die Beschaffung der Güter des Anlagevermögens zu ermitteln.
C14: Im hier betrachteten Fallbeispiel hat der Gründer Max Muster zu folgende Positionen des Anlagevermögens den
C15: Kapitalbedarf (zu Anschaffungs- bzw. Herstellungskosten) ermittelt:
C17: Nr. | D17: Position | I17: Betrag [EUR]
C18: 1. | D18: Grundstück und Umbaukosten (Werkstatt, Büro, Lagerhalle, Parkplatz) | I18: 350000
C19: 2. | D19: Betriebsmittel (Prüfgeräte, Ladegeräte, Werkzeuge u. a.) | I19: 100000
C20: 3. | D20: Kleintransporter | I20: 40000
C21: 4. | D21: Büroausstattung (Büromöbel, Computer, Kommunikationstechnik u. a.) | I21: 90000
C22: 5. | D22: Sicherheitstechnik (Werkstatt, Büro, Parkplatz) | I22: 20000
C23: 6. | D23: Summe Kapitalbedarf "Anlagevermögen" | I23: =SUM(I18:I22) -> 600000
C25: 2.2 Kapitalbedarf "Umlaufvermögen" [1]
C26: Dem Umlaufvermögen werden jene Vermögensgegenstände zugerechnet, die dem Geschäftsbetrieb eines Unternehmens
C27: nur kurzfristig (< 1 Jahr) dienen und die oft sogar in nur einem einzigen Kreislauf des Kapitals eine Rolle spielen.
C28: Auf die Höhe des Kapitalbedarfs im Bereich "Umlaufvermögen" haben im Wesentlichen zwei FaktorenEinfluss:
D29: a) die Höhe der durchschnittlichen Ausgaben [EUR/Periode] zur Aufrechterhaltung des Umsatzprozesses sowie
D31: b) die durchschnittliche Dauer der Kapitalbindung im Umsatzprozess als Zeitspanne zwischen dem Zeitpunkt
D32: des Eingangs beschaffter Rohstoffe und anderer Güter des Umlaufvermögens einerseits und dem Zeitpunkt der
D33: Zahlungseingänge aus dem Verkauf der hergestellten Produkte bzw. Leistungen andererseits.
C35: Liegen zu diesen Einflussfaktoren konkrete Zahlenangaben vor, dann lässt sich der Kapitalbedarf zur Finanzierung des
C36: Umlaufvermögens wie folgt bestimmen:
C39: Im betrachteten Fallbeispiel geht der Gründer von folgenden Annahmen aus:
C41: Nr. | D41: Position | I41: Betrag
C42: 1. | D42: durchschnittl. Verbrauch von RHB-Positionen und Handelswaren [EUR/d] | I42: 150
C43: 2. | D43: durchschnittl. Höhe der Löhne (inkl. kalkulat. Unternehmerlohn) [EUR/d] | I43: 850
C44: 3. | D44: durchschnittliche tägliche sonstige Ausgaben [EUR/d] | I44: 600
C45: 4. | D45: durchschnittlicher Lagerdauer von RHB-Positionen und Handelswaren [d] | I45: 6
C46: 5. | D46: durchschnittlich eingeräumtes Zahlungsziel der Lieferanten [d] | I46: 10
C47: 6. | D47: durchschnittl. Dauer der Erledigung von Wartungs-/Reparaturaufträgen [d] | I47: 2
C48: 7. | D48: durchschnittliche Wartedauer fertiger Leistungen [d] | I48: 1
C49: 8. | D49: durchschnittlich gewährtes Zahlungsziel für Kunden [d] | I49: 5
C50: 9. | D50: Kapitalbedarf "Roh-, Hilfs-, Betriebsstoffe und Handelswaren" | I50: =I42*(I45-I46+I47+I48+I49) -> 600
C51: 10. | D51: Kapitalbedarf "Löhne" | I51: =I43*(I47+I48+I49) -> 6800
C52: 11. | D52: Kapitalbedarf "Sonstige Ausgaben" | I52: =I44*(I45+I47+I48+I49) -> 8400
C53: 12. | D53: Kapitalbedarf "Umlaufvermögen" [1] | I53: =SUM(I50:I52) -> 15800

Sheet Finanzierung
C3: Fallbeispiel Fa. " E-Car Service Max Muster e. K."
C5: 2. Daten zum Kapitalbedarf und zur Finanzierung
C6: 2.3 Kapitalbedarf "Umlaufvermögen" [2]
C8: Der ermittelte Kapitalbedarf "Umlaufvermögen" [1] muss im Falle einer Unternehmensgründung noch um min-
C9: destens zwei weitere Positionen erweitert werden, und zwar durch einen "Kapitalbedarf vor Beginn der eigent-
C10: lichen Leistungsstellung und um einen Bedarf im Sinne einer "Liquiditätsreserve" (f0r "WENN-Fälle"):
C12: 13. | D12: Kapitalbedarf "Vor Beginn der Leistungserstellung" (inkl. Kosten der Lebenshaltung) [EUR] | J12: 30000
C13: 14. | D13: Kapitalbedarf "Liquiditätsreserve" {EUR] | J13: 40000
C14: 15. | D14: Summe Kapitalbedarf "Umlaufvermögen" [2] [EUR] | J14: =J12+J13 -> 70000
C16: 16. | D16: Summe Kapitalbedarf "Umlaufvermögen" gesamt [EUR] | J16: =Kapitalbedarf!I53+Finanzierung!J14 -> 85800
C18: 2.4 Gesamter Kapitalbedarf
C19: Der vom Gründer ermittele Kapitalbedarf setzt somit wie folgt zusammen:
C21: 1. | D21: Kapitalbedarf "Anlagevermögen" [EUR] | I21: =Kapitalbedarf!I23 -> 600000
C22: 2. | D22: Kapitalbedarf "Umlaufvermögen" {EUR] | I22: =J16 -> 85800
C23: 3. | D23: Kapitalbedarf "Gründungsvorhaben" [EUR] | I23: =Kapitalbedarf!I23+Finanzierung!J16 -> 685800
C25: 2.5 Abdeckung des Kapitalbedarfs durch eigene Mittel
C26: Jeder Gründer muss (bzw. sollte) in der Lage sein, eigene Mittel in das Gründungsvorhaben einzubringen.
C27: Im betrachteten Fall kann der Gründer Max Muster als Eigenmittel sowohl das geerbte Grundstück mit einem
C28: beurkundeten Schätzwert von | F28: 200000 | G28: EUR | H28: als auch liquide Mittel in Höhe von | J28: 400000 | K28: EUR
C29: und auch weitere Sacheinlagen (Computer, Büromöbel u. a.) im Wert von insgesamt | J29: 7800 | K29: EUR
C30: einbringen.
C31: Wenn vom ermittelten Gesamtkapitalbedarf in Höhe von insgesamt | I31: =I23 -> 685800 | J31: EUR der Betrag
C32: der einzubringenden eigenen Mittel in Höhe von insgesamt | I32: =Grundstueck+eig_LIqM+eig_SachM -> 607800 | J32: EUR subtrahiert
C33: wird, dann verbleibt ein noch offener Betrag in Höhe von | I33: =I31-I32 -> 78000 | J33: EUR.
C34: Welche Quellen können genutzt werden, um diesen Betrag finanziell abzusichern?
C36: 2.6 Abdeckung des Kapitalbedarfs durch Mittel aus Förderprogrammen
C37: Jungunternehmer können die Eigenkapitalbasis dadurch stärken, dass Mittel aus dem Förderprogramm "ERP-
C38: Kapital für Gründung" in Anspruch genommen werden.
C39: Im betrachteten Fall will der Gründer Max Muster (nach ausführlicher Beratung) aus diesem Programm
C40: einen Betrag in Höhe von | F40: 150000 | G40: EUR als tilgungs- und zinsbegünstigten Kredit aufnehmen (Lauf-
C41: zeit 15 Jahre, 100 % Haftungsfreistellung).
C43: 2.7 Abdeckung des Kapitalbedarfs durch eine Kredit der Hausbank
C44: Zur Absicherung der Deckung des noch offenen Betrages beim Kapitalbedarf will der Gründer einen Kredit
C45: in Höhe von | E45: 90000 | F45: EUR bei seiner Hausbank aufnehmen (Laufzeit: 6 Jahre).
C47: 2.8 Abstimmung "Kapitalbedarf" und "Finanzierung"
C48: Vor dem "Einstieg" in den ersten "Kreislauf des Umsatzprozesses" muss überprüft, ob der ermittelte Kapitalbedarf
C49: auch durch Bereitstellung von eigenen und fremden Mitteln abgesichert ist.
C50: Im betrachteten Fall ist dies offenbar der Fall:
C52: Nr. | D52: Position | I52: Betrag [EUR]
C53: 1. | D53: Gesamter Kapitalbedarf | I53: =I23 -> 685800
C54: 2. | D54: Einzubringende eigene Mittel | I54: =I32 -> 607800
C55: 3. | D55: ERP-Kapital für Gründung | I55: =F40 -> 150000
C56: 4. | D56: Kredit der Hausbank | I56: =E45 -> 90000
C57: 5. | D57: Summe der Mittel aus Finanzierungsquellen | I57: =SUM(I54:I56) -> 847800
C58: 6. | D58: =IF(I57>I53,"Überdeckung","Fehlbetrag") -> Überdeckung | I58: =I57-I53 -> 162000

Sheet Phase1
C3: Fallbeispiel Fa. " E-Car Service Max Muster e. K."
C5: 3. Phase 1: Kapitalbeschaffung
C6: 3.1 Inhalt, Aufgaben
C8: Nach Klärung aller verwaltungs- und banktechnischen Probleme in Vorbereitung auf den eigentlichen Start
C9: der Ingangsetzung des Geschäftsbetriebs des Unternehmens "E-Car-Services Max Muster e. K." richten sich
C10: richten sich nun alle weiteren Aktivitäten zunächst darauf, die für die Umsetzung seines Vorhabens benötigten
C11: Mittel (lt. Finanzierungskonzept) auch tatsächlich zu beschaffen.
C12: In der betriebswirtschaftlichen Abbildung der Ingangsetzung des Geschäftsbetriebs werden die entsprechenden
C13: Aktivitäten als "Phase 1 = Phase der Kapitalbeschaffung" bezeichnet.
C14: Wichtig:
C15: Die in der Phase der Kapitalbeschaffung vom Unternehmer zu beschaffenden bzw. beschafften Mittel kommen -
C16: aus der Sicht des Geschäftsbetriebs des Unternehmens als Kreislauf des Umsatzprozesses - ausnahmslos
C17: von Außen. Diese Art der Finanzierung eines Unternehmens wird daher auch als Außenfinanzierung bezeichnet.
C18: Die Aktivitäten des Gründers in der Phase "Kapitalbeschaffung" führen - so die Annahme - zu folgenden
C19: Aktivitäten und Ergebnissen:
C21: Nr. | D21: Position | G21: beschaffte Mittel [EUR] | H21: Zuordnung | I21: Laufzeit [Jahre]
C22: 1. | D22: Grundstück (bestätigter Einheitswert) | G22: =Grundstueck -> 200000 | H22: Einlage (Eigenkapital) | I22: unbefristet
C23: 2. | D23: Einlagen liquide Mittel | G23: =eig_LIqM -> 400000 | H23: Einlage (Eigenkapital) | I23: unbefristet
C24: 3. | D24: Sacheinlagen | G24: =eig_SachM -> 7800 | H24: Einlage (Eigenkapital) | I24: noch 3 Jahre Nutzungsdauer
C25: 4. | D25: ERP-Kapital für Gründung (bewilligt) | G25: =ERP_Mittel -> 150000 | H25: Förderkredit (Nachrang-Darlehen) | I25: 10
C26: 6. | D26: Kredit von der Hausbank (bewilligt) | G26: =BKredit -> 90000 | H26: Fremdkapital | I26: 6
D27: Summe | G27: =SUM(G22:G26) -> 847800
C29: Aufgabe:
C30: Die in obiger Tabelle angegebenen Zahlen sind - zwecks Darstellung der wirtschaftlichen Situation - in die
C31: Eröffnungsbilanz (gem. § 242 Abs. 1 HGB) zu übernehmen.
C32: Klicken Sie den Button "Bilanz_GuV" an und beachten Sie die hier gemachten Hinweis!

Sheet Phase2_1
C3: Fallbeispiel Fa. " E-Car Service Max Muster e. K."
C5: 4. Phase 2: Kapitalverwendung
C6: 4.1 Inhalt, Aufgaben
C8: Der Gründer Max Muster steht als Unternehmer nunmehr vor der Aufgabe, die beschafften und jetzt verfügbaren
C9: sachlichen und finanziellen Mittel für den Bau der Werkhalle (mit Büro, Parkplatz) sowie für den Erwerb der
C10: weiterer Betriebsmittel und sonstiger benötigter Gegenstände und Leistungen einzusetzen. Dies bedeutet:
C11: Der Unternehmer muss seinen Investitionsplan step-by-step verwirklichen. Dies ist der inhaltliche Kern der Phase 2
C12: der Ingangsetzung des Geschäftsbetriebs des Unternehmens, der Phase der Kapitalverwendung.
C13: In dieser Phase wird vom Gründer das Beherrschen eines professionellen Projektmanagements abgefordert, denn
C14: der Gründer (und kein anderer) muss die Verträge im Beschaffungsprozess aushandeln und unterzeichnen, das
C15: Bauvorhaben überwachen und steuern u. a. m.
C17: 4.2 Aktivitäten und Daten
C19: Wir gehen im betrachteten Fallbeispiel davon aus, dass der Gründer in der Phase der Kapitalverwendung folgende
C20: Aktivitäten ausführt:
C21: a) Aktivierung des ererbten Grundstücks
C22: Da der Unternehmer Max Muster das vorher unbebaute Grundstück über eine Erbschaft erhalten hat, fällt gem.
C23: § 3 Abs. 2 GrEStG keine Grunderwerbsteuer an. Dennoch entstehen hierbei Kosten:
D25: Einheitswert des Grundstücks | G25: =Grundstueck -> 200000 | H25: EUR.
G26: Nettobetrag [EUR] | H26: USt. 19 % | I26: Bruttobetrag [EUR]
D27: Notarielle Beurkundungen | G27: 500 | H27: =G27*19/100 -> 95 | I27: =G27+H27 -> 595
D28: Gebühren für Eintrag ins Grundbuch | G28: 600 | I28: =G28+H28 -> 600
D29: Grundsteuer (3,5 Promille des Einheitswerts) | G29: =G25*3.5/1000 -> 700 | I29: =G29+H29 -> 700
E30: dazu vierteljährlicher Betrag | G30: =G29/4 -> 175 | I30: =G30+H30 -> 175
C32: Der Unternehmer begleicht die Beträge für die notarielle Beurkundung, die Gebühren für den Grundbucheintrag
C33: sowie den vierteljährlichen Grundsteuerbetrag mit Banküberweisung in einem Geschäftsgang.
C34: b) Realisierung der Baumaßnahmen
C35: Für die Errichtung der Werkstatt (Fertigungshalle, Lagerräume, ferner Büroräume, Parkplatz) hat der Unternehmer
C36: ein mittelständischen Unternehmen aus B-Stadt beauftragt. Rechtsgrundlage: Werkvertrag.
C37: Es wird angenommen, dass die gesamten Baumaßnahmen im Zeitraum von 5 Monaten abgeschlossen wurden und
C38: das veranschlagte Finanzbudget im Wesentlichen eingehalten wird.
C39: Der Unternehmer leistete folgende Zahlungen per Banküberweisung:
G41: Nettobetrag [EUR] | H41: USt. 19 % | I41: Bruttobetrag [EUR]
D42: Kosten der realisierten Baumaßnahmen | G42: 345000 | H42: =G42*19/100 -> 65550 | I42: =G42+H42 -> 410550
C44: c) Erwerb eines Kleintransporters
C45: Betreffs des geplanten Erwerbs eines Kleintransporters liegen dem Unternehmer zwei Angebote zur Entscheidung
C46: vor. Mittels einer Kostenvergleichsrechnung hat er sich für das Angebot entschieden, dass in geplanten Nutzungszeit
C47: am kostengünstigsten ist.
C48: Der Unternehmer leistete folgende Zahlungen per Banküberweisung:
D50: Zahlungsbeträge | F50: Anschaffungskosten | G50: USt. 19 % | H50: Bruttobetrag
D51: Kleintransporter [EUR] | F51: 40000 | G51: =F51*19/100 -> 7600 | H51: =F51+G51 -> 47600

Sheet Phase2_2
C3: Fallbeispiel Fa. " E-Car Service Max Muster e. K."
C5: 4. Phase 2: Kapitalverwendung
C6: 4.2 Aktivitäten und Daten - Fortsetzung
C8: c) Beschaffung (Einkauf) von Betriebsmitteln, Gegenständen der Büroausstattung
C9: Entsprechend dem Investitionsplan (Teil Güter des Anlagevermögens) hat der Unternehmer Max Muster
C10: folgende Vermögensgegenstände erworben und die dabei anfallenden Beträge zwischenzeitlich per Bank-
C11: überweisung bezahlt:
H12: Nettobetrag [EUR] | I12: USt. 19 % | J12: Bruttobetrag [EUR]
D13: Technische Anlagen (Maschinen, Prüfgeräte, Ladegeräte u. a.) | H13: 96000 | I13: =H13*19/100 -> 18240 | J13: =H13+I13 -> 114240
D15: Büromöbel, Computer, Kommunikationstechnik u. a. | H15: 84000 | I15: =H15*19/100 -> 15960 | J15: =H15+I15 -> 99960
D16: Geräte der Sicherheitstechnik (Betriebsausstattung) | H16: 21000 | I16: =H16*19/100 -> 3990 | J16: =H16+I16 -> 24990
G17: Summe | H17: =H15+H16 -> 105000 | I17: =I15+I16 -> 19950 | J17: =J15+J16 -> 124950
C18: Zur Beachtung:
C19: Die hier aufgeführten Beträge wurden - so hier die Annahme - zum betrachteten Stichtag vom Unternehmer
C20: noch nicht bezahlt (Ausnutzung des von Lieferanten angebotenen Zahlungsziels).
C22: d) Beschaffung (Einkauf) von Gegenständen des Umlaufvermögens
C23: Entsprechend dem Investitionsplan (Teil Güter des Umlaufvermögens) hat der Unternehmer Max Muster folgende
C24: weitere Vermögensgegenstände erworben:
H25: Nettobetrag [EUR] | I25: USt. 19 % | J25: Bruttobetrag [EUR]
D26: Roh-, Hilf- und Betriebsstoffe (erstes Materiallager) | H26: 4500 | I26: =H26*19/100 -> 855 | J26: =H26+I26 -> 5355
D27: Handelswaren (Leuchten, Ersatzbatterien u. a.) | H27: 700 | I27: =H27*19/100 -> 133 | J27: =H27+I27 -> 833
G28: Summe | H28: =H26+H27 -> 5200 | I28: =H28*19/100 -> 988 | J28: =H28+I28 -> 6188
C29: Zur Beachtung:
C30: Die hier aufgeführten Beträge wurden - so hier die Annahme - zum betrachteten Stichtag vom Unternehmer
C31: noch nicht bezahlt (Ausnutzung des von Lieferanten angebotenen Zahlungsziels).
C33: e) Inanspruchnahme von Dienstleistungen
C34: In der über mindestens 6 Monate währenden Phase "Kapitalverwendung" hat der Unternehmer einige Dienst-
C35: leistungen in Anspruch genommen sowie Gegenstände des Betriebs- und Bürobedarfs eingekauft. Zudem sind
C36: Kfz-Kosten, Werbungskosten und Versicherungsbeträge angefallen:
H37: Nettobetrag [EUR] | I37: USt. 19 % | J37: Bruttobetrag [EUR]
D38: Kommunikationsleistungen (Telekom) | H38: 300 | I38: =H38*19/100 -> 57 | J38: =H38+I38 -> 357
D39: Beratungsleistungen (Steuerberater, Architekt u. a.) | H39: 2200 | I39: =H39*19/100 -> 418 | J39: 2618
D40: Gegenstände des Bürobedarfs | H40: 200 | I40: =H40*19/100 -> 38 | J40: 238
D41: Kfz-Kosten | H41: 400 | I41: =H41*19/100 -> 76 | J41: 476
D42: Werbungskosten | H42: 1500 | I42: =H42*19/100 -> 285 | J42: 1785
D43: Versicherungsbeträge (inklus. Versicherungssteuer) | H43: 1800 | J43: 1800
G44: Summe | H44: =SUM(H38:H43) -> 6400 | I44: =SUM(I38:I43) -> 874 | J44: 7274
C46: Die aufgeführten Beträge (inklus. Umsatzsteuer) wurden vom Unternehmer mit Banküberweisung bezahlt.

Sheet Phase2_3
C3: Fallbeispiel Fa. " E-Car Service Max Muster e. K."
C5: 4. Phase 2: Kapitalverwendung
C6: 4.2 Aktivitäten und Daten - Fortsetzung
C8: f) Erstattung der bezahlten Umsatzsteuer (Vorsteuer) durch das Finanzamt
C9: Zwangsläufig summieren sich in der Phase der Kapitalverwendung die Beträge der vom Unternehmer bezahlten
C10: Umsatzsteuer (= Vorsteuer) zu einem beachtlichen Posten an Liquiditätseinbußen.
C11: Es ist daher wichtig, dass der Unternehmer über die Erstellung und eine digitale Zusendung einer entsprechenden
C12: Umsatzsteuer-Voranmeldung die bezahlte Umsatzsteuer als "Forderung gegenüber dem Finanzamt" über das
C13: System "Elster" geltend macht.
C14: Im hier betrachteten Fall hat der Unternehmer folgende Summe an Umsatzsteuer-Beträgen (als Vorsteuer) bezahlt:
E15: =Phase2_1!H27+Phase2_1!H42+Phase2_1!G51+Phase2_2!I13+Phase2_2!I17+Phase2_2!I28+Phase2_2!I44 -> 113297 | F15: EUR.
C16: Wir nehmen an, dass dieser Betrag dem Unternehmer vom zuständigen Finanzamt auf dessen Geschäftskonto zurück
C17: erstattet wurde.
C19: g) Zusammenstellung aller Beträge zwecks Verbuchung in der Bilanz und GuV
C20: In der Phase 2 "Kapitalverwendung" sind - zusammenfassend - folgende Geschäftsvorfälle mit den zugehörigen
C21: EUR-Beträgen in die Bilanz bzw. GuV mit Zellenverknüpfung zu übertragen:
D23: Nr. | E23: Geschäftsvorfall (Stichwort) | G23: Betrag-Brutto | H23: USt./ bez. Grundsteuer | I23: Betrag-Netto | J23: Anmerk.
D24: 1. | E24: Notargebühren | G24: =Phase2_1!I27 -> 595 | H24: =Phase2_1!H27 -> 95 | I24: =Phase2_1!G27 -> 500 | J24: bezahlt
D25: 2. | E25: Grundbucheintrag, Grundsteuer | G25: =Phase2_1!G28+Phase2_1!I30 -> 775 | H25: =Phase2_1!I30 -> 175 | I25: =Phase2_1!I28 -> 600 | J25: bezahlt
D26: 3. | E26: Baumaßnahmen | G26: =Phase2_1!I42 -> 410550 | H26: =Phase2_1!H42 -> 65550 | I26: =Phase2_1!G42 -> 345000 | J26: bezahlt
D27: 4. | E27: Kleintransporter (Kfz) | G27: =Phase2_1!H51 -> 47600 | H27: =Phase2_1!G51 -> 7600 | I27: =Phase2_1!F51 -> 40000 | J27: bezahlt
D28: 5. | E28: Technische Anlagen | G28: =Phase2_2!J13 -> 114240 | H28: =Phase2_2!I13 -> 18240 | I28: =Phase2_2!H13 -> 96000 | J28: bezahlt
D29: 6. | E29: Büro- und Geschäftsausstattung | G29: =Phase2_2!J17 -> 124950 | H29: =Phase2_2!I17 -> 19950 | I29: =Phase2_2!H17 -> 105000 | J29: offen
D30: 7. | E30: RHB, Handelswaren | G30: =Phase2_2!J28 -> 6188 | H30: =Phase2_2!I28 -> 988 | I30: =Phase2_2!H28 -> 5200 | J30: offen
D31: 8. | E31: Dienstleistungen | G31: =Phase2_2!J44 -> 7274 | H31: =Phase2_2!I44 -> 874 | I31: =Phase2_2!H44 -> 6400 | J31: bezahlt
D32: 9. | E32: Rückerstattung Vorsteuer | I32: =E15 -> 113297 | J32: erstattet

Sheet Phase3
C3: Fallbeispiel Fa. " E-Car Service Max Muster e. K."
C5: 5. Phase 3: Kapital- und Personaleinsatz
C6: 5.1 Inhalt, Aufgaben
C8: Dank eines guten Projektmanagements wird die Werkhalle, das Büro und der Parkplatz des neuen Unternehmens
C9: E-Car-Services Max Muster e. K. bereits nach 5-monatiger Bauzeit fertiggestellt. Bei der Eröffnungsfeier gibt es
C10: bereits wichtige Kontakte zu potenziellen Kunden.
C11: Die für die eigentliche Leistungserstellung vorerst benötigten zwei Fachkräfte konnten gewonnen und eingestellt
C12: werden. Die Ehefrau Annett Muster wird das Aufgabengebiet der Buchführung übernehmen.
C13: Der unmittelbare Geschäftsbetrieb des neuen Unternehmens kann nunmehr aufgenommen werden.
C14: Aus betriebswirtschaftlicher Sicht wird diese dritte Phase im Kreislauf des Umsatzprozesses als Phase des Kapital-
C15: und Personaleinsatzes (= Prozess der Leistungserstellung) bezeichnet.
C16: Im hier betrachteten Fall geht es um die Ausführung von speziellen Dienstleistungen der Wartung und der Instand-
C17: setzung von Elektroautos. Im Einzelfall übernimmt der Unternehmer aber auch Aufträge für das Erstellen von
C18: Elektro-Scootern als Sonderanfertigung.
C19: Als "Nebengeschäft" werden den Kunden Artikel des Autozubehörs (als Handelswaren) angeboten.
C21: 5.2 Aktivitäten und Daten
C23: Wir nehmen an, dass im ersten vollen Monat der Aufnahme des Geschäftsbetriebs des jungen Unternehmens fol-
C24: gende Leistungen bzw. Produkte erstellt wurden (Angaben in [EUR]):
G25: Nettobetrag | H25: USt. 19 % | I25: Bruttobetrag | J25: bezahlt ?
D26: 1. Herstellung von E-Scootern | G26: 4900 | J26: noch nicht
D27: 1. Wartungsarbeiten an E-Autos | G27: 9950 | H27: =G27*19/100 -> 1890.5 | I27: =G27+H27 -> 11840.5 | J27: ja
D28: 2. Reparaturen an E-Autos | G28: 10450 | H28: =G28*19/100 -> 1985.5 | I28: =G28+H28 -> 12435.5 | J28: ja
C30: Der Unternehmer hat die Umsatzsteuer-Voranmeldung (mit USt. und VoSt.) noch nicht eingereicht!
C31: Zur Kalkulation der Kosten und Preise für erstellte Leistungen und verkaufte Handelswaren siehe folgende Datei:
F32: 02_07_Gruendung_Kalkulation.xlsm
C34: Folgende Aufwendungen [EUR] wurden im gleichen Zeitraum abgerechnet:
H35: Betrag | I35: bezahlt?
D36: 1. Verbrauch an RHB-Positionen | H36: 3820
D37: 2. Verbrauch an Handelswaren | H37: 780
D38: 3. Personalaufwendungen (Löhne) | H38: 4100 | I38: ja
D39: 4. Personalaufwendungen (Gehaltsbereich) | H39: 1900 | I39: ja
D40: 5. Personalaufwendungen (SV-Beträge Arbeitgeber) | H40: 1180 | I40: noch nicht
C42: Folgende sonstige Aufwendungen [EUR] sind im gleichen Zeitraum angefallen:
G44: Nettobetrag | H44: USt. 19 % | I44: Bruttobetrag | J44: bezahlt?
D45: 1. Kfz-Kosten | G45: 120 | H45: =G45*19/100 -> 22.8 | I45: =G45+H45 -> 142.8 | J45: ja
D46: 2. Telekommunikationskosten | G46: 80 | H46: =G46*19/100 -> 15.2 | I46: =G46+H46 -> 95.2 | J46: ja
D47: 3. Bürobedarf | G47: 60 | H47: =G47*19/100 -> 11.4 | I47: =G47+H47 -> 71.4 | J47: ja
D48: 4. Werbungskosten (Flyer) | G48: 860 | H48: =G48*19/100 -> 163.4 | I48: =G48+H48 -> 1023.4 | J48: noch nicht
F49: Summe = | G49: =SUM(G45:G48) -> 1120 | H49: =SUM(H45:H48) -> 212.8 | I49: 1332.8
C50: Vom Geschäftskonto des Unternehmens wurden ferner folgende Beträge per Lastschrift abgebucht:
E51: Tilgungsraten zum aufgenommenen Bankkredit: | H51: 5000 | I51: EUR
E52: Zinsen zum aufgenommenen Bankkredit: | H52: =H51*7/100 -> 350 | I52: EUR
E53: Zinsen zum aufgenommenen ERP-Kapital; | H53: 400 | I53: EUR
C55: Alle hier aufgeführten Beträge sind wiederum in die Bilanz bzw. in die GuV mit Zellenverknüpfung zu
C56: übertragen.

Sheet Phase4
C3: Fallbeispiel Fa. " E-Car Service Max Muster e. K."
C5: 6. Phase 4: Kapitalwandlung (Leistungsverwertung)
C6: 6.1 Inhalt, Aufgaben
C8: Das Besondere eines Dienstleistungsunternehmens ist darin zu sehen, dass das Marktrisiko nicht beim Verkauf er-
C9: stellter Produkte auf Zielmärkten, sondern in der Nachfrage nach den vom Unternehmer angebotenen Dienstleis-
C10: tungen besteht: Ist - wie im Fallbeispiel - ein Kunde mit seinem Auto erst einmal in der Werkstatt, ist das Schwie-
C11: rigste überstanden, denn nun kommt es "nur" noch darauf an, die vom Kunden gewünschte Leistung qualitätsgerecht
C12: und zu einem "bezahlbaren" Preis auszuführen.
C13: Werden hingegen - auftragsgemäß oder mit Eingehen eines Marktrisikos - Produkte erstellt, die erst nach Erwerb
C14: durch Kunden zu Umsätzen führen, wird die Leistungsverwertung schwieriger.
C15: Aus betriebswirtschaftlicher Sicht ist die Phase 4 (Kapitalwandlung) wie folgt zu charakterisieren:
C16: Der in einem erstellten Produkt bzw. in einer erbrachten Leistung verkörperte Wert, der im berechneten Preis
C17: seinen Geldausdruck findet, wandelt sich in "Cash" (bei Sofort-Zahlung) bzw. in eine "Forderung aus Lieferungen
C18: und Leistungen" (bei Zuerkennung eines Zahlungsziels für das Begleichen der Rechnung) um.
C19: In dieser Phase entscheidet sich somit, ob das Geschäftskonzept eines Gründers letztlich Bestand hat und seine
C20: Absatz- und Marketingstrategie aufgeht.
C22: 6.2 Aktivitäten und Daten
C24: Wir nehmen an, dass der Unternehmer Max Muster im betrachteten Zeitraum - außer den bereits getätigten
C25: Umsätzen aus Wartungs- und Reparaturleistungen (lt. Phase 3) - folgende weitere Umsätze mit Kunden realisiert hat:
G27: Nettobetrag | H27: USt. 19 % | I27: Bruttobetrag | J27: bezahlt ?
D28: 1. Verkauf der fertigen E-Scooter | G28: 6950 | H28: =G28*19/100 -> 1320.5 | I28: =G28+H28 -> 8270.5 | J28: noch nicht
D29: 2. Verkauf von Handelswaren | G29: 320 | H29: =G29*19/100 -> 60.8 | I29: =G29+H29 -> 380.8 | J29: ja (Kasse)
D30: 3. Wartungsleitungen bei E-Autos | G30: 5400 | H30: =G30*19/100 -> 1026 | I30: =G30+H30 -> 6426 | J30: ja
D32: Herstellungskosten der verkauften E-Scooter: | H32: =ScooterHstK -> 4900
C33: Der Unternehmer hat die Umsatzsteuer-Voranmeldung (mit USt. und VoSt.) noch nicht eingereicht!
C35: Folgende Aufwendungen [EUR] sind im gleichen Zeitraum zu verbuchen:
G37: Nettobetrag | H37: USt. 19 % | I37: Bruttobetrag | J37: bezahlt ?
D38: 1. Verbrauch von Rohstoffen | G38: 100
D39: 2. Verbrauch von Handelswaren | G39: 220
D40: 3. Werbungskosten (Tag der offenen Tür) | G40: 310 | H40: =G40*19/100 -> 58.9 | I40: =G40+H40 -> 368.9 | J40: ja
D41: 4. Energiekosten | G41: 540 | H41: =G41*19/100 -> 102.6 | I41: =G41+H41 -> 642.6 | J41: ja
D42: 5. Unterhaltsreinigung | G42: 290 | H42: 55.1 | I42: 345.1 | J42: ja
C44: Alle hier aufgeführten Beträge sind wiederum in die Bilanz bzw. in die GuV mit Zellenverknüpfung zu
C45: übertragen.

Sheet Phase5
C3: Fallbeispiel Fa. " E-Car Service Max Muster e. K."
C5: 7. Phase 5: Kapitalrückfluss (Inkasso)
C6: 7.1 Inhalt, Aufgaben
C8: Für den Fall, dass Rechnungen an Kunden nicht sofort zu begleichen sind, weil sie ein Zahlungsziel enthalten, kommt
C9: dem Problem "Inkasso" eine besondere Bedeutung zu: Forderungen (aus Lieferungen und Leistungen) stellen zwar
C10: Vermögensgegenstände (hier Debitoren) dar und sind bereits als "Erlöse aus Umsatz" zu verrechnen, aber solange
C11: dies nicht zu Einzahlungen führt, kann der Umsatzprozess (als Kreislauf) ins Stocken geraten.
C12: Und wenn dieser Kreislauf erst einmal wegen fehlender liquider Mittel gestört wird, entsteht schnell die Gefahr der
C13: Illiquidität des Unternehmens und damit die Gefährdung seiner Existenz!
C14: Eine der Hauptursachen für das Scheitern von Unternehmensgründungen ist die zeitweise fehlende Liquidität im Ge-
C15: schäftsbetrieb und dieser Sachverhalt kann auch dann eintreten, wenn ausreichende Umsätze getätigt hat, diese
C16: aber in der Hauptsache nur "Außenstände" (Forderungen) darstellen, und es kaum Hoffnung gibt, dass diese For-
C17: derungen (z. B. aus einem Exportgeschäft) ordnungsgemäß beglichen werden.
C18: Unternehmensgründer sind daher gut beraten, bei Geschäften mit Kunden die notwendige kaufmännische Vorsicht
C19: und Umsicht walten zu lassen: Lieber einen risikoreichen Auftrag ablehnen als sich in Mahnverfahren und dergleichen
C20: "zu üben"!
C22: 7.2 Aktivitäten und Daten
C24: Als Gründer eines primär Dienstleistungsunternehmens hat Max Muster seltener Rechnungen mit Zahlungsziel
C25: auszustellen. Im betrachteten Fallbeispiel geht es lediglich um das Begleichen der Rechnung für die Sonderan-
C26: fertigung von E-Scootern für einen Kunden K. Dieser Kunde begleicht die Rechnung innerhalb des Zahlungsziels
C27: per Banküberweisung.
C28: Der Unternehmer tätigt des Weiteren Einkäufe von RHB-Positionen und Handelswaren.
C29: Es sind auch Postgebühren zu bezahlen.
G31: Nettobetrag | H31: USt. 19 % | I31: Bruttobetrag | J31: bezahlt ?
D32: 1. Zahlungseingang Forderungen aLuL | I32: =ScooterB -> 8270.5 | J32: ja
D33: 2. Einkauf von RHB-Positionen | G33: 4500 | H33: =G33*19/100 -> 855 | I33: =G33+H33 -> 5355 | J33: noch nicht
D34: 3. Einkauf von Handelswaren | G34: 850 | H34: =G34*19/100 -> 161.5 | I34: =G34+H34 -> 1011.5 | J34: noch nicht
D35: 4. Bezahlung von Postgebühren | I35: 65.4 | J35: ja (Kasse)
C37: Der Unternehmer hat die Umsatzsteuer-Voranmeldung (mit USt. und VoSt.) noch nicht eingereicht!
C40: Alle hier aufgeführten Beträge sind wiederum in die Bilanz bzw. in die GuV mit Zellenverknüpfung zu
C41: übertragen.

Sheet Phase6_1
C3: Fallbeispiel Fa. " E-Car Service Max Muster e. K."
C5: 8. Phase 6: Kapitalabfluss (Entscheidungen)
C6: 8.1 Inhalt, Aufgaben
C8: Mit der Phase "Kapitalabfluss" ist der Gesamtprozess der Ingangsetzung des Geschäftsbetriebes eines Unternehmens -
C9: als Kreislauf gesehen - faktisch geschlossen.
C10: Da aber der Sinn einer Unternehmensgründung nicht darin besteht und bestehen kann, ein "Einmal-Geschäft" zu tätigen,
C11: muss es im Geschäftsbetrieb weitergehen, denn ein wichtiges Merkmal eines Gewerbebetriebes besteht gerade darin,
C12: dass er - vom Grundsatz her - auf Dauer angelegt wird ("Business must go on!").
C13: Im betrachteten Fallbeispiel sei es dem Jungunternehmer Max Muster gelungen, die ersten Kundenaufträge mit seinem
C14: kleinen Team zur Zufriedenheit der Kunden auszuführen.
C15: Die Phase 6 "Kapitalabfluss" ist dadurch charakterisiert, dass es gilt, Entscheidungen zur Verwendung der zurückge-
C16: flossenen Erlöse aus Umsatz zu treffen.
C17: Das betriebswirtschaftlich Allgemeingültige bezieht sich auf die Gruppierung der Abflüsse aus den erzielten Umsatzerlösen
C18: nach fünf zu unterscheidenden Sachverhalten (siehe Grafik):
H19: Erläuterung:
H21: Pos. 6.1: Kostenrückerstattung (Ersatz der getätigten
H22: Aufwendungen)
H23: Pos. 6.2: Erfüllung der Verpflichtungen zum Kapitaldienst
H24: (Kredittilgung, Zinsen)
H25: Pos. 6.3: Zahlung von Steuern und sonstigen Abgaben
H26: Pos. 6.4: Privatentnahmen (bei Personenunternehmen),
H27: Gewinnausschüttungen, Dividendenzahlungen
H28: Pos. 6.5: Einstellung von Gewinnen (nach Steuern) in
H29: Gewinnrücklagen zwecks Übergang zur Innenfinanzierung
C33: Spezielles Problem (6.1 - 6.5):
C34: Ein gegründetes Unternehmen kann - aus betriebswirtschaftlicher Sicht - nur fortbestehen, wenn es der Gründer schafft, den
C35: in Gang gesetzten Umsatzprozess zu einem sich selbst tragenden Kreislauf mit den Phasen Kapitalverwendung, Kapital- und Personal-
C36: einsatz, Kapitalwandlung, Kapitalrückfluss und Kapitalabfluss zu gestalten.
C37: Kriterium hierfür ist, ob und wie es dem Unternehmer gelingt, sich in seinem Geschäftsbetrieb von der Außenfinanzierung - als
C38: bislang alleiniger Form der Kapitalbeschaffung - abzukoppeln und eine dauerhafte Innenfinanzierung dieses Betriebs zustande
C39: zu bringen. Eine derartige Innenfinanzierung hat folgende drei Voraussetzungen:
C40: a) | D40: Das Unternehmen erzielt im Umsatzprozess kostendeckende Preise, so dass - vom Grundprinzip her - nach Abschluss der
D41: Phase ""Kapitalrückfluss"" ein voller Kostenersatz (siehe Sachverhalt 6.1) gesichert werden kann.
C42: b) | D42: Der Unternehmer ist ein "betriebswirtschaftlicher Profi": Er hat in die Preise für seine angebotenen Produkte bzw. Leistungen
D43: kalkulatorische Abschreibungen - als Ausdruck des anteiligen Werteverzehrs seiner Anlagegüter (Betriebsmittel u. a.) -
D44: eingerechnet. Ihm gelingt es, diese Preise im Umsatzprozess zu realisieren. Dann hat dies zur Konsequenz, dass über die
D45: Umsatzerlöse die Gegenwerte für die kalkulatorischen Abschreibungen in "Cashform" zurückfließen.
D46: Diese Gegenwerte werden systematisch angesammelt und stehen dann - nach Ablauf der Nutzungsdauer der Anlagegüter - für
D47: die Finanzierung der notwendigen Ersatzinvestitionen zur Verfügung, ohne dass erneut auf Formen der Außenfinanzierung
D48: zurückgegriffen werden muss.
C49: c) | D49: In den ersten zwei bis drei Jahren nach Gründung des Unternehmens werden von den erwirtschafteten Überschüssen, konkret
D50: von den Gewinnen nach Abzug von Gewinnsteuern, keine Gewinnausschüttungen bzw. -entnahmen vorgenommen.
D51: Die verbliebenen Überschüsse werden vielmehr angesammelt und in Gewinnrücklagen eingestellt.
C53: Diese Vorgehensweise gehört zum "betriebswirtschaftlichen ABC" eines Gründers, wird aber in der Praxis oft nicht ausreichend
C54: beherrscht!

Sheet Phase6_2
C3: Fallbeispiel Fa. " E-Car Service Max Muster e. K."
C5: 8. Phase 6: Kapitalabfluss (Entscheidungen)
C6: 8.2 Aktivitäten und Daten
C8: Im betrachteten Fallbeispiel hat der Unternehmer Max Muster hat nach Abschluss der Phase 5 (Kapitalrückfluss)
C9: Umsatzerlöse in Höhe von insgesamt | G9: =Umsatz1 -> 0 | H9: EUR erzielt.
C10: Wie sollen bzw. können diese liquiden Mittel verwendet werden?
C11: Hierzu werden im betrachteten Fallbeispiel folgende Aussagen bzw. Angaben gemacht:
C12: Pos. 6.1: Kostenersatz
C13: In der GuV (nach Phase 5) sind folgende Aufwendungen ausgewiesen:
D15: 1. Verbrauch an RHB-Positionen sowie Handelswaren | I15: =Material -> 0 | J15: EUR
D16: 2. Personalaufwendungen gesamt | I16: =Personal -> 0 | J16: EUR
D17: 3. Sonstige betriebliche Aufwendungen | I17: =sAufwand -> 0 | J17: EUR
H18: Summe | I18: 17895 | J18: EUR
C19: Im Komplex "Kostenersatz" noch nicht erfasst sind die Positionen "Abschreibungen" (siehe Abschnitt 6.5), "Zinsen"
C20: siehe Abschnitt 6.2) sowie "Entnahmen des Gründers" (als kalkulatorischer Unternehmerlohn, siehe Position 6.4).
C21: Pos. 6.2: Kapitaldienst, Verbindlichkeiten
C22: Der Kapitaldienst besteht aus fälligen Tilgungsraten (= Abtragen der Schulden) und zugehörigen Zinszahlungen.
C23: Zinsen werden handels- und steuerrechtlich als Aufwand akzeptiert. Sie können somit als kalkulatorische Zinsen in die
C24: Preise für Produkte bzw. Leistungen eingerechnet werden. Der Gegenwert der kalkulatorischen Zinsen fließt dann über
C25: die Umsatzerlöse wieder in das Unternehmen zurück.
C26: Bislang abgebuchte Beträge:
E27: Tilgung Bankkredit | G27: =TilgB1 -> 5000 | H27: EUR | I27: Zinsen Bankkredit | K27: =ZinsB1 -> 350 | L27: EUR
I28: Zinsen ERP-Kapital | K28: =ZinsERP1 -> 400 | L28: EUR
C29: Offen ist noch das Begleichen folgender Verbindlichkeiten (außer einer Umsatzsteuer-Zahllast):
E31: Verbindlichkeiten aLuL | H31: =Verb1+Verb2+Verb3+Verb4+Verb5 -> 138527.9 | I31: EUR
E32: Sonst. Verbindlichk. (soz. Sicherheit) | H32: =PersAG -> 1180 | I32: EUR
C34: Pos. 6.3: Steuern, Gebühren, Abgaben
C35: Jeder Unternehmer hat entsprechend den einschlägigen Rechtsvorschriften Abgaben an den Staat und an andere
C36: Einrichtungen zu leisten. Die betrifft zunächst das Begleichen einer Umsatzsteuerzahllast, die sich im Fallbeispiel nach
C37: den Daten der Bilanz (nach Phase 5) wie folgt errechnet:
E38: Umsatzsteuer | G38: =WartUst+RepUSt+ScooterUSt+HaWaUSt1+WartUSt2 -> 6283.3 | H38: EUR | I38: Vorsteuer | K38: =sonstAw1USt+WerbUSt2+EnKoUSt1+ReinUSt1+RHBUSt3+HaWaUSt3 -> 1445.9 | L38: EUR
I39: Umsatzsteuer-Zahllast | K39: =IF(offUSt>offVorSt,offUSt-offVorSt,offVorSt-offUSt) -> 4837.4 | L39: EUR
C40: Außer den Vorauszahlungen zur Umsatzsteuer und dem Bezahlen der Anteile des Unternehmers als Arbeitsgeber
C41: in Bezug auf SV-Beiträge - geht es auch um die Beiträge zur Berufsgenossenschaft, zur IHK bzw. HWK und ggf. zur
C42: Künstlersozialkasse sowie um Vorauszahlungen zur Gewerbesteuer, zur Kfz-Steuer, zur Grundsteuer, zur Einkommen-
C43: bzw. ggf. zur Körperschaftsteuer (bei Kapitalgesellschaften). (Haben wir was vergessen?)
C44: Im betrachteten Fallbeispiel wurde seien noch folgende Zahlungen offen, zu denen beim Unternehmer jedoch noch keine
C45: Zahlungsaufforderungen eingegangen sind, so dass noch keine Buchungen erfolgen müssen:
E47: Kfz-Steuer | I47: 120 | J47: EUR
E48: IHK-Beitrag | I48: 130 | J48: EUR
E49: Beitrag Berufsgenossenschaft | I49: 700 | J49: EUR
E50: Summe Beiträge | I50: =SUM(I47:I49) -> 950 | J50: EUR

Sheet Phase6_3
C3: Fallbeispiel Fa. " E-Car Service Max Muster e. K."
C5: 8. Phase 6: Kapitalabfluss (Entscheidungen)
C6: 8.2 Aktivitäten und Daten (Fortsetzung)
C8: Pos. 6.4: Privatentnahmen, Gewinnausschüttungen
C9: Einzelunternehmer sowie geschäftsführende Gesellschafter von Personengesellschaften bestreiten ihren Lebensunter-
C10: halt dadurch, dass sie Entnahmen aus den erzielten Umsatzerlösen tätigen. Dies ist handels- und steuerrechtlich logischer-
C11: weise zulässig, denn im dauerhaften Erwirtschaften von Mitteln für den eigenen Lebensunterhalt und für die Befriedigung
C12: persönlicher Bedürfnisse besteht ja ein wichtiges Motiv der Gründung und Führung von Personenunternehmen.
C13: Betriebs- bzw. finanzwirtschaftlich sind derartige Privatentnahmen bzw. Gewinnausschüttungen für das Unternehmen
C14: immer dann "verkraftbar", wenn Überschüsse (Gewinne) erwirtschaftet werden. Ist dies nicht der Fall, gibt es diesbezüglich
C15: sofort ernste Probleme für das weitere Bestehen des Unternehmens (siehe die "Lockdown-Probleme" in der "Corona-Krise").
C16: Bei Kapitalgesellschaften gelten andere Regelungen. Hier erhalten der bzw. die Geschäftsführer einer GmbH bzw. die Vor-
C17: standsmitglieder einer AG ein Gehalt lt. Anstellungsvertrag. Privatentnahmen sind nicht zulässig.
C18: Im hier betrachteten Fallbeispiel kann der Unternehmer Privatentnahmen tätigen, sei es aus jenem Teil, der als kalkulato-
C19: rischer Unternehmerlohn mit in die Preise für die erstellten Produkte bzw. Dienstleistungen berechnet wurde oder sei es
C20: aus erwirtschafteten Gewinnen (nach Steuern).
C21: Der Unternehmer Max Muster verzichtet im Fallbeispiel im Moment Entnahmen, da er erst sein Umsatzgeschäft weiter
C22: stabilisieren möchte.
C24: Pos. 6.5: Abschreibungen, Abschreibungsgegenwerte als Cashflow-Bestandteil
C25: Auf die Bedeutung der Einrechnung von kalkulatorischen Abschreibungsbeträgen in die Selbstkosten und damit in die
C26: Preise für erstellte Produkte und Dienstleistungen wurde bereits verwiesen (siehe Tab. "Phase6_1").
C27: Im diesem Fallbeispiel wird angenommen, dass in die Selbstkosten bzw. Preise der Dienstleistungen/Produkte folgende
C28: -zeitraumbezogenen - Beträge eingerechnet wurden:
D29: Bauten | H29: 800 | I29: EUR
D30: Technische Anlagen | H30: 500 | I30: EUR
D31: Fahrzeuge | H31: 600 | I31: EUR
D32: Betriebs- und Geschäftsausstattung | H32: 750 | I32: EUR
G33: Summe: | H33: =SUM(H29:H32) -> 2650 | I33: EUR
C35: Die in den Umsatzerlösen enthaltenen Abschreibungsgegenwerte machen somit einen Betrag von | K35: =H33 -> 2650 | L35: EUR aus.
C37: Die nachstehende Grafik soll verdeutlichen, welche Positionen der Umsatzerlöse zu Bestandteilen des Cashflows
C38: werden:
I39: Aufgaben:
I40: Die in den Tabellen "Phase6_2" und "Phase6_3" auf-
I41: Zahlungsverpflichtungen sind per Überweisungen bzw.
I42: Umbuchungen zu erfüllen.
I43: Die Abschreibungsbeträge sind in der Bilanz und
I44: und in der GuV nachzutragen.
I46: Damit endet dieses Fallbeispiel!

Sheet Bilanz_GuV
AV1: 1200000
AV2: 200000
C3: Fallbeispiel Fa. " E-Car Service Max Muster e. K."
E5: Phase im Kreislauf des Umsatzprozesses
D6: 1 | E6: Phase 1: Kapitalbeschaffung
D8: Zu erledigende Aufgaben in der Phase | V8: Erfolgsrechnung (GKV)
D10: Die Aufgabe des Gründers in der Phase 1 = Phase der Kapitalbeschaffung besteht darin, die im Finanzierungsplan enthaltenen Mittel zur Abdeckung des Kapitalbedarfs 'kassenwirksam' und damit bilanzierungswirksam zu beschaffen und abzusichern. Die Beträge aus der Tabelle 'Phase1' sind - im Sinne der doppelten Buchführung - doppelt in die zutreffenden Bilanzpositionen mittels Zellenverknüpfung ('= ...') zu übertragen. Dabei ist immer auf die strickte Einhaltung folgender Bedingungen zu achten: Summe Aktiva = Summe Passiva; Ergebnis (Bilanz) = Ergebnis (GuV); AB liquider Mittel + Netto-CF = EB liquider Mittel. Sind alle Beträge in die Bilanz übertragen, können die Button 'Kapitalflussrechnung' und 'Kommentare' angeklickt werden. | V10: 1. | W10: Umsatzerlöse | Y10: 0
V11: 2. | W11: Bestandsveränderungen bei UE, FE | Y11: 0
V12: 3. | W12: andere aktivierte Eigenleistungen | Y12: 0
V13: 4. | W13: sonstige betriebliche Erträge | Y13: 0
V14: 5. | W14: Materialaufwand | Y14: 0
V15: 6. | W15: Personalaufwand | Y15: 0
E16: Grundstück (bestätigter Einheitswert) | V16: 7. | W16: Abschreibungen | Y16: 0
V17: 8. | W17: sonstige betriebliche Aufwendungen | Y17: 0
E18: Bilanz der Fa. E-Car-Service Max Muster e. K. | W18: Betriebsergebnis | Y18: =SUM(Y10:Y13)-SUM(Y14:Y17) -> 0
M19: =CONCATENATE("01.01. "&YEAR(NOW())&" ") -> 01.01. 2021 | O19: Angaben in EUR | V19: 9. | W19: sonstige Zinsen und ähnl. Erträge | Y19: 0
C20: AKTIVA | M20: PASSIVA | V20: 10. | W20: Zinsen und ähnliche Aufwendungen | Y20: 0
W21: Ergebnis der gewöhnl. Geschäftstät. | Y21: =B_Ergebnis+ZinsE-ZinsA -> 0
C22: A. Anlagevermögen | K22: A. | M22: Eigenkapital | O22: =Sum_Akt_0-SUM(O30:O33) -> 0 | Q22: =Sum_Akt_neu-SUM(Q30:Q34) -> 0 | V22: 11. | W22: außerordentliche Erträge | Y22: 0
V23: 12. | W23: außerordentliche Aufwendungen | Y23: 0
E24: 1. Grundstücke, Bauten | G24: 0 | I24: 0 | M24: 1. Eigene Einlagen | O24: 0 | Q24: 0 | W24: außerordentliches Ergebnis | Y24: =ao_Ert-ao_Aufw -> 0
E25: 2. Techn. Anlagen, Masch. | G25: 0 | I25: 0 | M25: 2. Gewinnrücklagen | O25: 0 | Q25: 0 | W25: Ergebnis vor Steuern | Y25: =Erg_gewGT+ao_Erg -> 0
E26: 3. Fahrzeuge | G26: 0 | I26: 0 | V26: 13. | W26: Steuern vom Einkommen, Ertrag | Y26: 0
E27: 4. Betriebs-/Geschäftsausstatt. | G27: 0 | I27: 0 | M27: Ergebnis | O27: =Sum_Akt_0-EigEinl_0-GewRueck_0-SUM(O30:O33) -> 0 | Q27: =Sum_Akt_neu-EK_01-EK_02-SUM(Q30:Q34) -> 0 | V27: 14. | W27: Sonstige Steuern | Y27: 0
C29: B. Umlaufvermögen | K29: B. | M29: Verbindlichkeiten | W29: ERGEBNIS | Y29: =Erg_VSt-ESt-sonstSt -> 0
E30: 1. RHB, Handelswaren | G30: 0 | I30: 0 | M30: 1. Verb. geg. Kreditinst. | O30: 0 | Q30: 0
E31: 2. Fertige Erzeugn., Leist. | G31: 0 | I31: 0 | M31: 2. Verb. aus Förderkrediten | O31: 0 | Q31: 0
E32: 3. Forderungen aus LuL | G32: 0 | I32: 0 | M32: 3. Verbindlichkeiten aLuL | O32: 0 | Q32: 0
E33: 4. sonstige Forderungen | G33: 0 | I33: 0 | M33: 4. Sonst. Verbindl. (USt) | O33: 0 | Q33: 0
E34: 5. Bank | G34: 0 | I34: 0 | M34: 5. Sonst. Verbindl. (soz. Sich.) | O34: 0 | Q34: 0
E35: 6. Kasse | G35: 0 | I35: 0
G37: =SUM(G24:G35) -> 0 | I37: =SUM(I24:I35) -> 0 | O37: =SUM(O22:O36) -> 0 | Q37: =SUM(Q24:Q34) -> 0

Sheet Cashflow1 (hidden)
C3: C. Kapitalflussrechnung
C4: Die Kapitalflussrechnung nach der indirekten Methode basiert allein auf den Daten der
C5: Bilanz und der GuV_Rechnung. Bei den Änderungen der Bilanz-Daten wird wie gerechnet:
C6: AKTIVA: | D6: Änderung = alter Wert ./. neuer Wert ("plus" = 'weniger Kapitalbindung'; "minus" = 'mehr Kapitalbindung')
C7: PASSIVA: | D7: Änderung = neuer Wert ./. alter Wert ("plus" ='spart Geldabfluss'; "minus" = 'Geldabfluss')
E9: Kreislaufphase | F9: =KLNr -> 1
C10: 0. | D10: Liquide Mittel vor Beginn des Kreislaufs | G10: =Bank_0+Kasse_0 -> 0
C12: 1. | D12: Jahresergebnis lt. GuV | E12: =Jahresergebnis -> 0
C13: 2. | D13: Abschreibungen | E13: =Abschr -> 0
C14: 3. | D14: Zu-/Abnahme der RHB-Vorräte | E14: =RHB_0-UV_01 -> 0
C15: 4. | D15: Zu-/Abnahme der Vorräte bei UE/FE | E15: =FE_0-UV_02 -> 0
C16: 5. | D16: Zu-/Abnahme der Forderungen aLuL | E16: =Ford_0-UV_03 -> 0
C17: 6. | D17: Zu-/Abnahme der sonstigen Forderungen | E17: =sFord_0-UV_04 -> 0
C18: 7. | D18: Zu-/Abnahme der Verbindlichkeiten aLuL | E18: =FK_03-Verb_aLuL_0 -> 0
C19: 8. | D19: Zu-/Abnahme der sonst. Verbindlichkeiten (USt) | E19: =FK_04-sonstVblUSt_0 -> 0
C20: 9. | D20: Operativer Cashflow | F20: =SUM(E12:E19) -> 0
C22: 10. | D22: Zu-/Abnahme Anlagevermögen | E22: =SUM(Bilanz_GuV!G24:G27)-SUM(Bilanz_GuV!I24:I27) -> 0
C23: 11. | D23: Cashflow aus Investitionen | F23: =E22-AbschrCF -> 0
C25: 12. | D25: Zu-/Abnahme beim Eigenkapital (Eigene Einlagen) | E25: =EK_01E-EK0-Bil_Jahresergebnis -> 0
D26: Zu-/Abnahme Verbindlichkeiten gg. Kreditinstituten | E26: =SUM(Bilanz_GuV!Q30:Q31)-SUM(Bilanz_GuV!O30:O31) -> 0
C27: 13. | D27: Cashflow aus Finanzierungstätigkeit | F27: =E25+E26 -> 0
C29: 14. | D29: Netto-Cashflow | F29: =F20+F23+F27 -> 0
C31: 15. | D31: Liquide Mittel am Ende des Testes (Liqide Mittel am Anfang + Netto-Cashflow) | G31: =G10+F29 -> 0
D33: Liquide Mittel lt. Bilanz nach Abschluss des jeweiligen Geschäftsvorfalls | G33: =UV_05+UV_06 -> 0
F34: Saldo: | G34: =G31-G33 -> 0
C35: Die Summe aus "Anfangsbestand an liquiden Mitteln" und "Netto-Cashflow" muss nach jedem Geschäftsvorfall dem jewiligen Endbestand an liquiden Mitteln entsprechen!
